[Event "Late-Titled-Tuesday-Blitz-September-12-2023"]
[Site "Chess.com"]
[Date "2023.09.12"]
[Round "4"]
[White "Jospem"]
[Black "BogdanDeac"]
[Result "0-1"]
[WhiteElo "3093"]
[BlackElo "2953"]
[TimeControl "180+1"]
[EndTime "14:39:45 PDT"]
[Termination "BogdanDeac won on time"]

1. e4 {[%clk 0:03:00.9]} 1... e5 {[%clk 0:03:00.2]} 2. Nf3 {[%clk 0:03:00.9]}
2... Nf6 {[%clk 0:03:00.9]} 3. Nc3 {[%clk 0:03:01.4]} 3... Nc6 {[%clk
0:03:01.1]} 4. h3 {[%clk 0:03:02.1]} 4... Bb4 {[%clk 0:03:01.2]} 5. Bd3 {[%clk
0:03:01.8]} 5... O-O {[%clk 0:03:00.9]} 6. O-O {[%clk 0:03:01.6]} 6... Re8
{[%clk 0:03:01.1]} 7. Re1 {[%clk 0:02:57.9]} 7... h6 {[%clk 0:02:46.3]} 8. Nd5
{[%clk 0:02:51.8]} 8... Bf8 {[%clk 0:02:46.5]} 9. Nxf6+ {[%clk 0:02:48.9]} 9...
Qxf6 {[%clk 0:02:46.4]} 10. c3 {[%clk 0:02:48]} 10... a5 {[%clk 0:02:36.3]} 11.
a4 {[%clk 0:02:47.1]} 11... Bc5 {[%clk 0:02:35.7]} 12. Bc4 {[%clk 0:02:44.3]}
12... d6 {[%clk 0:02:35.8]} 13. d3 {[%clk 0:02:44.8]} 13... Be6 {[%clk 0:02:32]}
14. Be3 {[%clk 0:02:44.8]} 14... Bxe3 {[%clk 0:02:22.4]} 15. Rxe3 {[%clk
0:02:44.2]} 15... Bxc4 {[%clk 0:02:22.6]} 16. dxc4 {[%clk 0:02:45.1]} 16... Qe6
{[%clk 0:02:23]} 17. Nd2 {[%clk 0:02:35.3]} 17... b6 {[%clk 0:02:09.3]} 18. Qe2
{[%clk 0:02:25.3]} 18... f5 {[%clk 0:02:00.2]} 19. exf5 {[%clk 0:02:25.2]} 19...
Qxf5 {[%clk 0:02:01.1]} 20. Ne4 {[%clk 0:02:16.1]} 20... Rf8 {[%clk 0:02:01.1]}
21. Qd3 {[%clk 0:02:12.9]} 21... Ne7 {[%clk 0:01:54.5]} 22. Rf3 {[%clk
0:02:08.1]} 22... Qe6 {[%clk 0:01:45.2]} 23. Rxf8+ {[%clk 0:02:09]} 23... Rxf8
{[%clk 0:01:45.3]} 24. Re1 {[%clk 0:02:09.7]} 24... Ng6 {[%clk 0:01:38.4]} 25.
b3 {[%clk 0:02:03]} 25... Nf4 {[%clk 0:01:34.2]} 26. Qg3 {[%clk 0:01:49.4]}
26... Qf5 {[%clk 0:00:57.5]} 27. f3 {[%clk 0:01:36.1]} 27... Ne6 {[%clk
0:00:48.3]} 28. Qf2 {[%clk 0:01:15.2]} 28... Nf4 {[%clk 0:00:46.6]} 29. Qd2
{[%clk 0:01:03.5]} 29... Qg6 {[%clk 0:00:46.3]} 30. Kh2 {[%clk 0:00:57.7]} 30...
Qf7 {[%clk 0:00:46.2]} 31. Rd1 {[%clk 0:00:52.5]} 31... Kh8 {[%clk 0:00:42.8]}
32. Re1 {[%clk 0:00:52.6]} 32... Qe6 {[%clk 0:00:37]} 33. Re3 {[%clk 0:00:48.9]}
33... Qf7 {[%clk 0:00:31.2]} 34. Re1 {[%clk 0:00:46.3]} 34... Qe6 {[%clk
0:00:30.6]} 35. Rf1 {[%clk 0:00:41]} 35... Qf7 {[%clk 0:00:26.6]} 36. Rf2 {[%clk
0:00:40.9]} 36... Qg6 {[%clk 0:00:24.4]} 37. b4 {[%clk 0:00:34.7]} 37... Qf7
{[%clk 0:00:24.5]} 38. c5 {[%clk 0:00:34.7]} 38... bxc5 {[%clk 0:00:17.7]} 39.
bxc5 {[%clk 0:00:31.3]} 39... d5 {[%clk 0:00:17.7]} 40. Ng3 {[%clk 0:00:31.9]}
40... Qe8 {[%clk 0:00:03.3]} 41. c4 {[%clk 0:00:20.4]} 41... Qxa4 {[%clk
0:00:03.3]} 42. cxd5 {[%clk 0:00:20.4]} 42... Qd4 {[%clk 0:00:03.3]} 43. d6
{[%clk 0:00:20.3]} 43... cxd6 {[%clk 0:00:03.2]} 44. cxd6 {[%clk 0:00:21.2]}
44... Nd3 {[%clk 0:00:03.1]} 45. Re2 {[%clk 0:00:19.7]} 45... Qxd6 {[%clk
0:00:03.1]} 46. Qxa5 {[%clk 0:00:19.6]} 46... Nf4 {[%clk 0:00:02]} 47. Qxe5
{[%clk 0:00:18.9]} 47... Qxe5 {[%clk 0:00:01.7]} 48. Rxe5 {[%clk 0:00:19.8]}
48... Rf7 {[%clk 0:00:02.2]} 49. Re4 {[%clk 0:00:18.2]} 49... Kh7 {[%clk
0:00:02.4]} 50. Ra4 {[%clk 0:00:17]} 50... g5 {[%clk 0:00:02.6]} 51. Ne4 {[%clk
0:00:17.2]} 51... Rb7 {[%clk 0:00:03.2]} 52. Ra2 {[%clk 0:00:17.5]} 52... Kg7
{[%clk 0:00:03.3]} 53. Nd6 {[%clk 0:00:17.7]} 53... Rd7 {[%clk 0:00:03.1]} 54.
Ne4 {[%clk 0:00:18.2]} 54... Kg6 {[%clk 0:00:03.3]} 55. Kg3 {[%clk 0:00:18]}
55... Nh5+ {[%clk 0:00:03]} 56. Kf2 {[%clk 0:00:18.6]} 56... Nf4 {[%clk
0:00:02.7]} 57. Ra6+ {[%clk 0:00:19]} 57... Kg7 {[%clk 0:00:03]} 58. Kg3 {[%clk
0:00:19.2]} 58... Rb7 {[%clk 0:00:02.7]} 59. Ra2 {[%clk 0:00:16.5]} 59... Rb4
{[%clk 0:00:02]} 60. h4 {[%clk 0:00:15.8]} 60... Nh5+ {[%clk 0:00:02.4]} 61. Kh3
{[%clk 0:00:16.5]} 61... gxh4 {[%clk 0:00:01.7]} 62. Rc2 {[%clk 0:00:15.4]}
62... Nf4+ {[%clk 0:00:01.6]} 63. Kxh4 {[%clk 0:00:14.7]} 63... Ng6+ {[%clk
0:00:01.9]} 64. Kg3 {[%clk 0:00:15.2]} 64... h5 {[%clk 0:00:02]} 65. Rc7+ {[%clk
0:00:15.5]} 65... Kh6 {[%clk 0:00:02.3]} 66. Rc6 {[%clk 0:00:14.1]} 66... Rb2
{[%clk 0:00:02.9]} 67. f4 {[%clk 0:00:12]} 67... h4+ {[%clk 0:00:03.1]} 68. Kh3
{[%clk 0:00:12]} 68... Kg7 {[%clk 0:00:03.6]} 69. f5 {[%clk 0:00:11.4]} 69...
Nf4+ {[%clk 0:00:03.8]} 70. Kg4 {[%clk 0:00:12.1]} 70... Nxg2 {[%clk 0:00:04.2]}
71. Rc7+ {[%clk 0:00:12.2]} 71... Kf8 {[%clk 0:00:04.6]} 72. Ng5 {[%clk
0:00:10]} 72... Ne3+ {[%clk 0:00:04.5]} 73. Kf4 {[%clk 0:00:10.6]} 73... Nd5+
{[%clk 0:00:04.7]} 74. Kg4 {[%clk 0:00:10.5]} 74... Nxc7 {[%clk 0:00:05.6]} 75.
Kxh4 {[%clk 0:00:11.4]} 75... Rb3 {[%clk 0:00:05.3]} 76. Kh5 {[%clk 0:00:11.8]}
76... Rb6 {[%clk 0:00:05.2]} 77. Ne4 {[%clk 0:00:12]} 77... Ne8 {[%clk
0:00:05.4]} 78. Kg5 {[%clk 0:00:12.7]} 78... Ke7 {[%clk 0:00:05.8]} 79. Nc5
{[%clk 0:00:13.3]} 79... Nf6 {[%clk 0:00:05.2]} 80. Ne6 {[%clk 0:00:12.9]} 80...
Rb1 {[%clk 0:00:05.5]} 81. Nd4 {[%clk 0:00:13.1]} 81... Rg1+ {[%clk 0:00:05.7]}
82. Kf4 {[%clk 0:00:13.2]} 82... Rf1+ {[%clk 0:00:06.3]} 83. Kg5 {[%clk
0:00:12.6]} 83... Ne4+ {[%clk 0:00:06.6]} 84. Kg4 {[%clk 0:00:13.3]} 84... Kf6
{[%clk 0:00:07]} 85. Nc2 {[%clk 0:00:13.3]} 85... Rxf5 {[%clk 0:00:06.4]} 86.
Ne3 {[%clk 0:00:14.1]} 86... Ra5 {[%clk 0:00:06.5]} 87. Kf4 {[%clk 0:00:15]}
87... Nd6 {[%clk 0:00:06.5]} 88. Nc2 {[%clk 0:00:14.9]} 88... Ra4+ {[%clk
0:00:06.8]} 89. Ke3 {[%clk 0:00:15.6]} 89... Ke5 {[%clk 0:00:07.1]} 90. Kd3
{[%clk 0:00:16.5]} 90... Nb5 {[%clk 0:00:06.6]} 91. Ne3 {[%clk 0:00:16.6]} 91...
Ra3+ {[%clk 0:00:06.6]} 92. Kd2 {[%clk 0:00:17.3]} 92... Ke4 {[%clk 0:00:06.4]}
93. Nc4 {[%clk 0:00:17.7]} 93... Rd3+ {[%clk 0:00:07]} 94. Ke2 {[%clk
0:00:17.7]} 94... Nd4+ {[%clk 0:00:05.9]} 95. Kf2 {[%clk 0:00:18.4]} 95... Rc3
{[%clk 0:00:05.9]} 96. Nd6+ {[%clk 0:00:16.4]} 96... Kf4 {[%clk 0:00:06.1]} 97.
Kg2 {[%clk 0:00:17.2]} 97... Rc2+ {[%clk 0:00:06]} 98. Kf1 {[%clk 0:00:17.5]}
98... Nf3 {[%clk 0:00:04.8]} 99. Ne4 {[%clk 0:00:16.1]} 99... Rc1+ {[%clk
0:00:04.6]} 0-1

[Event "Late-Titled-Tuesday-Blitz-September-12-2023"]
[Site "Chess.com"]
[Date "2023.09.12"]
[Round "5"]
[White "maksimys18"]
[Black "ashookk"]
[Result "1-0"]
[WhiteElo "2491"]
[BlackElo "2352"]
[TimeControl "180+1"]
[EndTime "14:47:27 PDT"]
[Termination "maksimys18 won by resignation"]

1. d4 {[%clk 0:03:00.9]} 1... Nf6 {[%clk 0:02:59.4]} 2. Nf3 {[%clk 0:03:01.5]}
2... g6 {[%clk 0:02:58.8]} 3. c4 {[%clk 0:03:02.1]} 3... c5 {[%clk 0:02:58.1]}
4. d5 {[%clk 0:03:01.4]} 4... b5 {[%clk 0:02:58.8]} 5. Qc2 {[%clk 0:02:59.4]}
5... Bg7 {[%clk 0:02:58.1]} 6. e4 {[%clk 0:02:59.3]} 6... d6 {[%clk 0:02:58.3]}
7. Be2 {[%clk 0:02:58.3]} 7... O-O {[%clk 0:02:58.8]} 8. O-O {[%clk 0:02:58.5]}
8... bxc4 {[%clk 0:02:55.5]} 9. Nc3 {[%clk 0:02:58.4]} 9... a5 {[%clk
0:02:55.7]} 10. Bg5 {[%clk 0:02:53.4]} 10... Na6 {[%clk 0:02:47.7]} 11. Bxc4
{[%clk 0:02:51.4]} 11... Nb4 {[%clk 0:02:47.7]} 12. Qe2 {[%clk 0:02:50.5]} 12...
Ba6 {[%clk 0:02:48.2]} 13. Bxa6 {[%clk 0:02:49.1]} 13... Nxa6 {[%clk 0:02:47.3]}
14. Rad1 {[%clk 0:02:47.9]} 14... Nd7 {[%clk 0:02:35.6]} 15. h3 {[%clk
0:02:41.7]} 15... Rb8 {[%clk 0:02:30.2]} 16. Qxa6 {[%clk 0:02:38.7]} 1-0

[Event "Late-Titled-Tuesday-Blitz-September-12-2023"]
[Site "Chess.com"]
[Date "2023.09.12"]
[Round "5"]
[White "talaicito"]
[Black "Taran2004"]
[Result "0-1"]
[WhiteElo "2206"]
[BlackElo "2417"]
[TimeControl "180+1"]
[EndTime "14:47:33 PDT"]
[Termination "Taran2004 won by checkmate"]

1. d4 {[%clk 0:03:00.9]} 1... Nf6 {[%clk 0:02:56.7]} 2. Nc3 {[%clk 0:02:59.8]}
2... d5 {[%clk 0:02:56.1]} 3. Bf4 {[%clk 0:02:59.5]} 3... g6 {[%clk 0:02:55.7]}
4. e3 {[%clk 0:02:59]} 4... Bg7 {[%clk 0:02:55.8]} 5. Nf3 {[%clk 0:02:59.6]}
5... O-O {[%clk 0:02:56.2]} 6. Ne5 {[%clk 0:02:59.6]} 6... c5 {[%clk 0:02:53.7]}
7. h4 {[%clk 0:02:58.8]} 7... h5 {[%clk 0:02:47.8]} 8. f3 {[%clk 0:02:58.9]}
8... Nc6 {[%clk 0:02:47.3]} 9. Qd2 {[%clk 0:02:58.6]} 9... Qb6 {[%clk
0:02:45.1]} 10. O-O-O {[%clk 0:02:56]} 10... Bf5 {[%clk 0:02:38.9]} 11. g4
{[%clk 0:02:53.9]} 11... hxg4 {[%clk 0:02:38.9]} 12. fxg4 {[%clk 0:02:53.9]}
12... Nxg4 {[%clk 0:02:36.5]} 13. Nxg4 {[%clk 0:02:52.8]} 13... Bxg4 {[%clk
0:02:36.8]} 14. Be2 {[%clk 0:02:50.8]} 14... cxd4 {[%clk 0:02:25.7]} 15. Nxd5
{[%clk 0:02:41.2]} 15... dxe3 {[%clk 0:02:24.9]} 16. Bxe3 {[%clk 0:02:33.6]}
16... Qxb2# {[%clk 0:02:23.9]} 0-1

[Event "Late-Titled-Tuesday-Blitz-September-12-2023"]
[Site "Chess.com"]
[Date "2023.09.12"]
[Round "5"]
[White "Alexei_Gubajdullin"]
[Black "stasOR4ik"]
[Result "1-0"]
[WhiteElo "2601"]
[BlackElo "2439"]
[TimeControl "180+1"]
[EndTime "14:48:41 PDT"]
[Termination "Alexei_Gubajdullin won by resignation"]

1. d4 {[%clk 0:03:00.2]} 1... d5 {[%clk 0:02:59.9]} 2. Nf3 {[%clk 0:03:00.1]}
2... Nf6 {[%clk 0:02:59.9]} 3. Bf4 {[%clk 0:03:00.1]} 3... Bg4 {[%clk
0:02:58.6]} 4. Nbd2 {[%clk 0:02:59.4]} 4... e6 {[%clk 0:02:54.5]} 5. e3 {[%clk
0:02:58.2]} 5... c5 {[%clk 0:02:53.8]} 6. c3 {[%clk 0:02:58]} 6... Nc6 {[%clk
0:02:53.9]} 7. Qb3 {[%clk 0:02:57.7]} 7... Qb6 {[%clk 0:02:51.6]} 8. Ne5 {[%clk
0:02:57.1]} 8... Nxe5 {[%clk 0:02:50.1]} 9. dxe5 {[%clk 0:02:56.4]} 9... Nd7
{[%clk 0:02:26.1]} 10. Bb5 {[%clk 0:02:48.2]} 10... Be7 {[%clk 0:02:04.5]} 11.
c4 {[%clk 0:02:46.5]} 11... Qc7 {[%clk 0:01:58.2]} 12. cxd5 {[%clk 0:02:43.3]}
12... exd5 {[%clk 0:01:53.5]} 13. e6 {[%clk 0:02:42.9]} 13... Qa5 {[%clk
0:01:32.6]} 14. Bxd7+ {[%clk 0:02:32.9]} 14... Kf8 {[%clk 0:01:31.8]} 15. Qxb7
{[%clk 0:02:32.4]} 15... Rd8 {[%clk 0:01:27.7]} 16. Bc7 {[%clk 0:02:31.5]} 1-0

[Event "Late-Titled-Tuesday-Blitz-September-12-2023"]
[Site "Chess.com"]
[Date "2023.09.12"]
[Round "5"]
[White "KamlaPasand"]
[Black "DvaHrasta"]
[Result "0-1"]
[WhiteElo "2284"]
[BlackElo "2473"]
[TimeControl "180+1"]
[EndTime "14:48:53 PDT"]
[Termination "DvaHrasta won by resignation"]

1. e4 {[%clk 0:03:00.9]} 1... c6 {[%clk 0:02:59.7]} 2. d4 {[%clk 0:03:00.1]}
2... d5 {[%clk 0:02:59.8]} 3. Nc3 {[%clk 0:03:00.7]} 3... dxe4 {[%clk
0:02:59.7]} 4. Nxe4 {[%clk 0:03:01.6]} 4... Bf5 {[%clk 0:02:59.2]} 5. Ng3 {[%clk
0:03:01.9]} 5... Bg6 {[%clk 0:02:59.1]} 6. h4 {[%clk 0:03:02.8]} 6... h6 {[%clk
0:02:58.5]} 7. Nf3 {[%clk 0:03:03.3]} 7... Nd7 {[%clk 0:02:58]} 8. h5 {[%clk
0:03:03.8]} 8... Bh7 {[%clk 0:02:58]} 9. Bd3 {[%clk 0:03:04.7]} 9... Bxd3 {[%clk
0:02:57.8]} 10. Qxd3 {[%clk 0:03:05.6]} 10... Ngf6 {[%clk 0:02:57]} 11. Bd2
{[%clk 0:03:06.5]} 11... e6 {[%clk 0:02:56.9]} 12. O-O-O {[%clk 0:03:06.9]}
12... Be7 {[%clk 0:02:56.5]} 13. c4 {[%clk 0:03:06.7]} 13... b5 {[%clk
0:02:53.5]} 14. cxb5 {[%clk 0:03:05.5]} 14... cxb5 {[%clk 0:02:53.7]} 15. Qxb5
{[%clk 0:03:05.5]} 15... O-O {[%clk 0:02:53.3]} 16. Kb1 {[%clk 0:03:05.1]} 16...
Rb8 {[%clk 0:02:51.8]} 17. Qd3 {[%clk 0:03:05]} 17... Qb6 {[%clk 0:02:49]} 18.
Bc3 {[%clk 0:03:04.5]} 18... Rfc8 {[%clk 0:02:45]} 19. Rd2 {[%clk 0:03:03.9]}
19... Nd5 {[%clk 0:02:43.3]} 20. Ne4 {[%clk 0:02:58.5]} 20... f5 {[%clk
0:02:39.2]} 21. Nc5 {[%clk 0:02:56.7]} 21... Bxc5 {[%clk 0:02:33.8]} 22. dxc5
{[%clk 0:02:56.8]} 22... Nxc5 {[%clk 0:02:32.8]} 23. Qd4 {[%clk 0:02:57.3]}
23... Nxc3+ {[%clk 0:02:31.9]} 24. Qxc3 {[%clk 0:02:57.3]} 24... Ne4 {[%clk
0:02:29.4]} 25. Qe5 {[%clk 0:02:55.1]} 25... Rc5 {[%clk 0:02:14.4]} 26. Qf4
{[%clk 0:02:32.8]} 26... Rb5 {[%clk 0:01:55.4]} 27. Rdd1 {[%clk 0:02:23]} 27...
Rxb2+ {[%clk 0:01:51]} 28. Ka1 {[%clk 0:02:23.9]} 28... Rxa2+ {[%clk 0:01:49.9]}
29. Kxa2 {[%clk 0:02:24]} 0-1

[Event "Late-Titled-Tuesday-Blitz-September-12-2023"]
[Site "Chess.com"]
[Date "2023.09.12"]
[Round "5"]
[White "simplerXiao"]
[Black "chessprincesa1"]
[Result "1-0"]
[WhiteElo "2514"]
[BlackElo "2268"]
[TimeControl "180+1"]
[EndTime "14:49:33 PDT"]
[Termination "simplerXiao won by resignation"]

1. e4 {[%clk 0:02:34.3]} 1... c5 {[%clk 0:02:57.5]} 2. Nf3 {[%clk 0:02:33.4]}
2... d6 {[%clk 0:02:57.5]} 3. d4 {[%clk 0:02:34.3]} 3... cxd4 {[%clk 0:02:57.8]}
4. Nxd4 {[%clk 0:02:35.2]} 4... Nf6 {[%clk 0:02:57.5]} 5. Nc3 {[%clk 0:02:35.9]}
5... a6 {[%clk 0:02:57.7]} 6. Be3 {[%clk 0:02:33.6]} 6... e5 {[%clk 0:02:58.1]}
7. Nde2 {[%clk 0:02:30.8]} 7... b5 {[%clk 0:02:53.7]} 8. Ng3 {[%clk 0:02:23.7]}
8... Be7 {[%clk 0:02:52.1]} 9. Be2 {[%clk 0:02:22.5]} 9... O-O {[%clk
0:02:52.4]} 10. Qd2 {[%clk 0:02:18.1]} 10... Be6 {[%clk 0:02:51.5]} 11. Nd5
{[%clk 0:02:17]} 11... Nxd5 {[%clk 0:02:43.3]} 12. exd5 {[%clk 0:02:16.7]} 12...
Bd7 {[%clk 0:02:43.5]} 13. O-O {[%clk 0:02:11.4]} 13... a5 {[%clk 0:02:40.9]}
14. f4 {[%clk 0:02:11.5]} 14... exf4 {[%clk 0:02:34.2]} 15. Bxf4 {[%clk
0:02:11.3]} 15... Na6 {[%clk 0:02:33.6]} 16. Kh1 {[%clk 0:02:09.7]} 16... Nc5
{[%clk 0:02:29.5]} 17. Nh5 {[%clk 0:02:04.5]} 17... Ne4 {[%clk 0:02:14.3]} 18.
Qd4 {[%clk 0:02:03.5]} 18... Nf6 {[%clk 0:02:14.1]} 19. Ng3 {[%clk 0:01:53.2]}
19... Rc8 {[%clk 0:02:06.7]} 20. Bd3 {[%clk 0:01:51.6]} 20... Qc7 {[%clk
0:02:00.1]} 21. Ne4 {[%clk 0:01:31.7]} 21... Qc5 {[%clk 0:01:48.5]} 22. Nxc5
{[%clk 0:01:30.6]} 1-0

[Event "Late-Titled-Tuesday-Blitz-September-12-2023"]
[Site "Chess.com"]
[Date "2023.09.12"]
[Round "5"]
[White "FairChess_on_YouTube"]
[Black "h4parah5"]
[Result "1-0"]
[WhiteElo "3069"]
[BlackElo "2949"]
[TimeControl "180+1"]
[EndTime "14:50:02 PDT"]
[Termination "FairChess_on_YouTube won by resignation"]

1. e4 {[%clk 0:03:00.9]} 1... e5 {[%clk 0:02:59.3]} 2. Nf3 {[%clk 0:02:59.7]}
2... Nc6 {[%clk 0:02:59.9]} 3. Bb5 {[%clk 0:02:58.5]} 3... a6 {[%clk 0:03:00.2]}
4. Ba4 {[%clk 0:02:58.3]} 4... Bc5 {[%clk 0:03:00.9]} 5. O-O {[%clk 0:02:55.8]}
5... Nge7 {[%clk 0:02:59.8]} 6. c3 {[%clk 0:02:55.4]} 6... Ba7 {[%clk
0:02:57.6]} 7. d4 {[%clk 0:02:55.3]} 7... Ng6 {[%clk 0:02:58.1]} 8. Bg5 {[%clk
0:02:52.6]} 8... f6 {[%clk 0:02:57.8]} 9. Be3 {[%clk 0:02:52.7]} 9... O-O {[%clk
0:02:57.6]} 10. Nbd2 {[%clk 0:02:51.7]} 10... d6 {[%clk 0:02:56.6]} 11. Re1
{[%clk 0:02:51.7]} 11... Kh8 {[%clk 0:02:54.7]} 12. a3 {[%clk 0:02:49.5]} 12...
a5 {[%clk 0:02:50.2]} 13. b4 {[%clk 0:02:43.3]} 13... axb4 {[%clk 0:02:38.7]}
14. axb4 {[%clk 0:02:42.8]} 14... Nce7 {[%clk 0:02:36.3]} 15. Bb3 {[%clk
0:02:40.7]} 15... Bd7 {[%clk 0:02:27.4]} 16. h3 {[%clk 0:02:32.9]} 16... Bb6
{[%clk 0:02:07.4]} 17. Nc4 {[%clk 0:02:29.5]} 17... Ba7 {[%clk 0:01:52.7]} 18.
Rxa7 {[%clk 0:02:24.6]} 18... Rxa7 {[%clk 0:01:51.5]} 19. dxe5 {[%clk
0:02:25.2]} 19... Ra8 {[%clk 0:01:51.3]} 20. exd6 {[%clk 0:02:25.3]} 20... Nc8
{[%clk 0:01:47.4]} 21. e5 {[%clk 0:02:17.8]} 21... fxe5 {[%clk 0:01:45.4]} 22.
Bg5 {[%clk 0:02:16.8]} 22... Qe8 {[%clk 0:01:44.7]} 23. dxc7 {[%clk 0:01:56.4]}
23... Be6 {[%clk 0:01:33.1]} 24. Ncxe5 {[%clk 0:01:48.4]} 24... Bxb3 {[%clk
0:01:28]} 25. Qxb3 {[%clk 0:01:49.3]} 25... Nxe5 {[%clk 0:01:26.9]} 26. Nxe5
{[%clk 0:01:49.3]} 26... Nd6 {[%clk 0:01:21.5]} 27. Be7 {[%clk 0:01:46.2]} 1-0

[Event "Late-Titled-Tuesday-Blitz-September-12-2023"]
[Site "Chess.com"]
[Date "2023.09.12"]
[Round "5"]
[White "MathiasCasalaspro"]
[Black "younix2022"]
[Result "1/2-1/2"]
[WhiteElo "2247"]
[BlackElo "2064"]
[TimeControl "180+1"]
[EndTime "14:50:17 PDT"]
[Termination "Game drawn by repetition"]

1. e4 {[%clk 0:02:59.2]} 1... c5 {[%clk 0:03:00]} 2. Nf3 {[%clk 0:02:57.2]} 2...
e6 {[%clk 0:02:58.2]} 3. d4 {[%clk 0:02:52.5]} 3... cxd4 {[%clk 0:02:57.8]} 4.
Nxd4 {[%clk 0:02:53.4]} 4... Nf6 {[%clk 0:02:58]} 5. Nc3 {[%clk 0:02:51.7]} 5...
Nc6 {[%clk 0:02:58.1]} 6. Nxc6 {[%clk 0:02:51]} 6... bxc6 {[%clk 0:02:58]} 7. e5
{[%clk 0:02:51.9]} 7... Nd5 {[%clk 0:02:56.6]} 8. Ne4 {[%clk 0:02:52.4]} 8...
Qc7 {[%clk 0:02:55.9]} 9. f4 {[%clk 0:02:51.9]} 9... Bb4+ {[%clk 0:02:53]} 10.
c3 {[%clk 0:02:51.7]} 10... Be7 {[%clk 0:02:52.6]} 11. Nd6+ {[%clk 0:02:45.1]}
11... Bxd6 {[%clk 0:02:41.3]} 12. exd6 {[%clk 0:02:46]} 12... Qxd6 {[%clk
0:02:09.7]} 13. c4 {[%clk 0:02:45.1]} 13... Qb4+ {[%clk 0:02:07]} 14. Bd2 {[%clk
0:02:45.1]} 14... Qxb2 {[%clk 0:02:07.7]} 15. cxd5 {[%clk 0:02:45]} 15... cxd5
{[%clk 0:02:03.4]} 16. Rb1 {[%clk 0:02:18.7]} 16... Qxa2 {[%clk 0:02:03.6]} 17.
Qc1 {[%clk 0:02:15]} 17... O-O {[%clk 0:01:58.7]} 18. Bb5 {[%clk 0:01:47.9]}
18... d4 {[%clk 0:01:41.8]} 19. Bc4 {[%clk 0:01:25.9]} 19... Qa4 {[%clk
0:01:36.1]} 20. Bb5 {[%clk 0:01:22]} 20... Qa2 {[%clk 0:01:30.2]} 21. Bc4 {[%clk
0:01:13.4]} 21... Qa4 {[%clk 0:01:28.3]} 22. Bb5 {[%clk 0:01:05.2]} 22... Qa2
{[%clk 0:01:27.9]} 1/2-1/2

[Event "Late-Titled-Tuesday-Blitz-September-12-2023"]
[Site "Chess.com"]
[Date "2023.09.12"]
[Round "5"]
[White "The_Straightforward_Rook"]
[Black "Skagoogle"]
[Result "0-1"]
[WhiteElo "2533"]
[BlackElo "2788"]
[TimeControl "180+1"]
[EndTime "14:50:58 PDT"]
[Termination "Skagoogle won by checkmate"]

1. d4 {[%clk 0:03:00.9]} 1... d5 {[%clk 0:02:59.8]} 2. Nf3 {[%clk 0:03:00.5]}
2... Nf6 {[%clk 0:02:59.9]} 3. c4 {[%clk 0:03:01.1]} 3... dxc4 {[%clk
0:02:59.9]} 4. e3 {[%clk 0:03:00.9]} 4... Bg4 {[%clk 0:03:00.2]} 5. Nbd2 {[%clk
0:03:00.1]} 5... Nc6 {[%clk 0:02:58.7]} 6. h3 {[%clk 0:02:58.7]} 6... Bh5 {[%clk
0:02:58.7]} 7. Nxc4 {[%clk 0:02:58.1]} 7... e6 {[%clk 0:02:58.2]} 8. g4 {[%clk
0:02:55.9]} 8... Bg6 {[%clk 0:02:58.2]} 9. Bg2 {[%clk 0:02:50.7]} 9... h5 {[%clk
0:02:43.9]} 10. g5 {[%clk 0:02:48.3]} 10... Ne4 {[%clk 0:02:43.9]} 11. h4 {[%clk
0:02:11]} 11... Bb4+ {[%clk 0:02:43.3]} 12. Kf1 {[%clk 0:02:09.3]} 12... Bd6
{[%clk 0:02:35.9]} 13. a3 {[%clk 0:01:57]} 13... O-O {[%clk 0:02:35.7]} 14. b4
{[%clk 0:01:56.7]} 14... f6 {[%clk 0:02:23]} 15. Rg1 {[%clk 0:01:33.2]} 15...
fxg5 {[%clk 0:02:18.2]} 16. hxg5 {[%clk 0:01:32.3]} 16... Kh7 {[%clk 0:02:05.9]}
17. Ncd2 {[%clk 0:01:24.3]} 17... Nc3 {[%clk 0:01:44.4]} 18. Qb3 {[%clk
0:01:20.3]} 18... Nd5 {[%clk 0:01:44.5]} 19. Rh1 {[%clk 0:01:06.4]} 19... a5
{[%clk 0:01:41]} 20. b5 {[%clk 0:01:05.9]} 20... a4 {[%clk 0:01:41.5]} 21. Qd1
{[%clk 0:00:59.6]} 21... Nce7 {[%clk 0:01:39.6]} 22. e4 {[%clk 0:00:56.9]} 22...
Nf4 {[%clk 0:01:39.2]} 23. e5 {[%clk 0:00:52.8]} 23... Bd3+ {[%clk 0:01:33.7]}
24. Kg1 {[%clk 0:00:53]} 24... Neg6 {[%clk 0:01:30.1]} 25. exd6 {[%clk
0:00:48.8]} 25... Ne2+ {[%clk 0:01:30.2]} 26. Kh2 {[%clk 0:00:46.9]} 26... Qxd6+
{[%clk 0:01:30.2]} 27. Ne5 {[%clk 0:00:44]} 27... Nxe5 {[%clk 0:01:29.4]} 28.
dxe5 {[%clk 0:00:44.9]} 28... Qxe5+ {[%clk 0:01:29.6]} 29. Kh3 {[%clk
0:00:45.3]} 29... Bf5+ {[%clk 0:01:24.1]} 30. Kh4 {[%clk 0:00:43.7]} 30... Qf4+
{[%clk 0:01:24.3]} 31. Kxh5 {[%clk 0:00:43.5]} 31... g6# {[%clk 0:01:25]} 0-1

[Event "Late-Titled-Tuesday-Blitz-September-12-2023"]
[Site "Chess.com"]
[Date "2023.09.12"]
[Round "5"]
[White "Francisco_Ferrari"]
[Black "KorolDimitriy75"]
[Result "1-0"]
[WhiteElo "2236"]
[BlackElo "2367"]
[TimeControl "180+1"]
[EndTime "14:51:00 PDT"]
[Termination "Francisco_Ferrari won by checkmate"]

1. d4 {[%clk 0:02:59.6]} 1... Nf6 {[%clk 0:02:59.6]} 2. Bg5 {[%clk 0:02:58.9]}
2... Ne4 {[%clk 0:02:59]} 3. Bf4 {[%clk 0:02:58.1]} 3... c5 {[%clk 0:02:58.8]}
4. c3 {[%clk 0:02:51]} 4... Qb6 {[%clk 0:02:53.8]} 5. Qb3 {[%clk 0:02:49.3]}
5... cxd4 {[%clk 0:02:50.2]} 6. cxd4 {[%clk 0:02:48.1]} 6... Qxd4 {[%clk
0:02:09.2]} 7. e3 {[%clk 0:02:48.4]} 7... Qb6 {[%clk 0:02:01.2]} 8. Qc2 {[%clk
0:02:43]} 8... Nc6 {[%clk 0:01:45.4]} 9. Nf3 {[%clk 0:02:19.3]} 9... d5 {[%clk
0:01:40.8]} 10. Nc3 {[%clk 0:02:12.5]} 10... Bf5 {[%clk 0:00:53]} 11. Bd3 {[%clk
0:01:51.9]} 11... Nb4 {[%clk 0:00:19.1]} 12. Qa4+ {[%clk 0:01:35.3]} 12... Bd7
{[%clk 0:00:19.1]} 13. Bb5 {[%clk 0:01:30.1]} 13... Bxb5 {[%clk 0:00:14.5]} 14.
Nxb5 {[%clk 0:01:30.6]} 14... Nc5 {[%clk 0:00:08.3]} 15. Nc7+ {[%clk 0:01:25.1]}
15... Kd8 {[%clk 0:00:07.5]} 16. Qe8# {[%clk 0:01:24.1]} 1-0